bitfinex/quotes_ETHUSD_20250620
["timestamp","ask_amount","ask_price","bid_price","bid_amount"]
[1750442386567,4.12634399,2423.5,2422.9,4.12719936]
[1750442386717,4.12661434,2423.3,2422.7,4.12751456]
[1750442386923,2.838,2423.2,2422.2,11.0818]
[1750442387120,2.838,2423.2,2423.1,4.12694482]
[1750442387321,11.829,2423.2,2422.9,4.12718856]
[1750442387654,11.829,2423.2,2422.9,4.12728033]
[1750442387822,0.0605,2423.1,2422.8,4.12742984]
[1750442388022,9.903,2423.0,2422.8,4.12742984]
[1750442388233,9.903,2423.0,2422.7,4.1275002]
[1750442388580,9.0365,2422.9,2422.7,4.12748514]
[1750442388760,0.0605,2422.7,2422.5,4.12787294]
[1750442388938,0.0605,2422.7,2422.4,4.12804838]
[1750442388939,8.976,2422.6,2422.4,4.12804838]
[1750442389141,2.839,2422.5,2421.8,5.15244249]
[1750442389473,2.839,2422.5,2422.4,4.12813738]
[1750442390170,0.9537,2422.8,2422.6,4.12779658]
[1750442390470,11.806,2422.7,2422.6,4.12768381]
[1750442390880,11.806,2422.7,2422.5,4.12785926]
[1750442390881,0.0605,2422.6,2422.5,4.12785926]
[1750442391239,11.806,2422.7,2422.6,4.12779658]
[1750442391881,0.9537,2422.8,2422.6,4.12779658]
[1750442392188,11.765,2422.7,2422.6,4.12763342]
[1750442392849,0.9537,2422.8,2422.6,4.12763342]
[1750442393047,1.0142,2422.8,2422.7,4.1276262]
[1750442393251,12.7802,2422.8,2422.6,4.12770078]
[1750442393450,1.0142,2422.8,2422.5,4.12788308]
[1750442393677,11.766,2422.7,2422.5,4.12788308]
[1750442394240,11.766,2422.7,2422.6,4.12779658]
[1750442394576,11.766,2422.7,2421.6,10.0]
[1750442394577,0.0603,2421.8,2420.9,4.13057856]
[1750442394775,4.12977827,2421.5,2420.9,4.13057404]
[1750442394977,10.0166,2421.4,2421.0,4.13051156]
[1750442395272,11.767,2421.3,2421.0,4.13051156]
[1750442395575,0.0603,2421.2,2421.0,4.13051156]
[1750442395785,11.767,2421.1,2421.0,4.13051156]
[1750442395986,11.767,2421.1,2420.6,4.13118937]
[1750442395987,11.767,2421.1,2420.2,1.0169]
[1750442396192,11.767,2421.0,2420.9,4.13069519]
[1750442396408,0.0603,2421.6,2421.1,4.13023613]
[1750442396574,0.0603,2421.6,2421.0,4.13051042]
[1750442396575,0.0603,2421.5,2420.6,4.13105774]
[1750442396895,11.77,2421.4,2421.1,4.13020198]
[1750442397094,0.0603,2421.3,2421.1,4.13027921]
[1750442397398,0.0603,2421.3,2421.2,4.13018338]
[1750442397570,11.77,2421.3,2421.1,4.13025953]
[1750442397771,11.77,2421.3,2420.7,0.41310577]
[1750442397967,11.77,2421.3,2420.9,4.13063006]
[1750442398162,11.77,2421.3,2421.0,4.13050303]
[1750442398163,0.0603,2421.2,2421.0,4.13050303]
[1750442398367,9.9673,2421.7,2421.1,4.13035397]
[1750442398681,11.77,2421.6,2421.4,4.12983469]
[1750442398886,0.0603,2421.5,2421.1,4.13027225]
[1750442399097,11.77,2421.4,2421.1,4.13027225]
[1750442399299,0.0603,2421.3,2420.2,1.076]
[1750442399464,11.769,2421.2,2420.9,4.13060425]
[1750442399812,1.0797,2421.0,2420.9,4.13060425]
[1750442400162,1.0194,2421.0,2420.9,4.13060425]
[1750442400359,1.0194,2421.0,2420.2,1.0169]
[1750442400360,1.0797,2421.0,2419.4,0.9887]
[1750442400710,4.13147554,2420.5,2419.5,4.13308534]
[1750442400916,4.13147554,2420.5,2418.9,4.10927167]
[1750442400917,4.19212146,2420.3,2419.6,0.51217853]
[1750442401128,4.19212146,2420.3,2418.9,4.10927167]
[1750442401129,4.13287666,2419.7,2418.9,4.05017167]
[1750442401418,4.13370169,2419.2,2418.2,1.0009]
[1750442401564,0.0603,2419.0,2418.0,0.41622594]
[1750442401765,9.912,2419.1,2419.0,4.13393964]
[1750442401996,0.9925,2419.9,2419.0,0.41339396]
[1750442402177,0.0603,2419.4,2419.1,0.04133368]
[1750442402365,0.0603,2419.4,2418.0,0.47102899]
[1750442402366,0.9925,2419.2,2418.8,4.13428075]
[1750442402566,0.9925,2419.2,2419.1,4.13376875]
[1750442402815,2.806,2419.1,2417.8,1.223626]
[1750442403100,4.132214,2420.1,2417.8,1.223626]
[1750442403101,21.692,2419.0,2418.9,4.13411054]
[1750442403315,11.776,2419.0,2418.9,4.13411054]
[1750442403632,3.8354,2420.5,2419.1,0.0591]
[1750442403839,0.27204344,2420.4,2419.7,5.10841297]
[1750442404124,8.97,2420.3,2419.3,0.0591]
[1750442404348,4.13206065,2420.1,2418.7,4.1342902]
[1750442404505,4.13206065,2420.1,2418.8,4.13428146]
[1750442404506,0.0603,2419.9,2418.8,4.13428146]
[1750442404705,21.698,2419.8,2419.3,4.13339417]
[1750442404922,21.698,2419.8,2419.1,4.133683]
[1750442404923,2.806,2419.7,2419.1,4.13367556]
[1750442405105,1.0444,2419.6,2418.5,5.11054521]
[1750442405307,1.0444,2419.3,2418.0,0.9937]
[1750442405503,10.0,2419.1,2418.1,0.04134661]
[1750442405705,0.0603,2418.7,2417.5,0.9701]
[1750442405926,0.0603,2418.5,2417.5,5.10645243]
[1750442406139,0.0603,2418.5,2417.5,4.13645319]
[1750442406439,11.797,2418.4,2417.9,4.135733]
[1750442406651,4.19612033,2417.9,2417.1,4.13709956]
[1750442406944,4.19612033,2417.9,2416.9,4.13739575]
[1750442406945,10.0603,2417.8,2416.9,4.13739575]
[1750442407107,10.0603,2417.8,2416.3,0.0591]
[1750442407108,1.01,2417.4,2416.3,0.0591]
[1750442407439,21.7763,2417.3,2415.9,0.0591]
[1750442407635,21.7763,2417.3,2417.1,4.13718183]
[1750442407636,11.797,2417.2,2417.1,4.13718183]
[1750442407800,11.797,2417.2,2416.5,0.04137307]
[1750442407999,11.797,2417.2,2416.2,4.13870547]
[1750442408191,4.13749343,2417.0,2415.8,0.0591]
[1750442408394,1.0057,2416.8,2416.7,4.13775198]
[1750442408621,0.0603,2417.2,2416.2,0.0591]
[1750442408622,2.808,2416.9,2416.2,0.0591]
[1750442408823,2.808,2416.8,2416.7,4.13787396]
[1750442409200,1.0057,2417.2,2416.1,0.04138004]
[1750442409530,1.0057,2417.2,2416.7,0.34542252]
[1750442409531,11.796,2417.1,2416.7,0.34542252]
[1750442409733,1.0057,2417.2,2417.1,4.13718919]
[1750442409915,12.8057,2417.2,2417.1,4.13718919]
[1750442410225,12.8057,2417.2,2416.7,0.34542252]
[1750442410226,1.0057,2417.2,2416.7,0.34542252]
[1750442410433,0.0603,2417.1,2416.7,4.48315625]
[1750442410615,1.066,2417.2,2416.7,0.34542252]
[1750442410815,3.7982,2417.6,2416.8,0.0413804]
[1750442411019,8.986,2417.5,2417.4,3.9895214]
[1750442411320,8.997,2417.6,2417.5,4.13650465]
[1750442411519,9.923,2418.0,2417.9,4.13582033]
[1750442411717,0.974,2418.5,2417.5,1.22628544]
[1750442411920,11.809,2418.4,2418.1,4.13531236]
[1750442412138,11.8693,2418.4,2417.7,4.1360228]
[1750442412434,4.13521316,2418.3,2417.7,4.13607346]
[1750442412632,12.859,2418.2,2417.6,4.13632273]
[1750442412823,11.808,2418.1,2417.7,4.13604674]
[1750442413133,0.0603,2418.0,2416.7,4.13775853]
[1750442413333,13.5071237,2418.1,2417.6,4.13625344]
[1750442413334,1.066,2417.9,2417.6,4.13625344]
[1750442413628,1.066,2417.9,2417.6,4.13632502]
[1750442413629,0.0603,2417.8,2417.6,4.13632502]
[1750442413833,9.926,2417.8,2417.7,4.13616246]
[1750442413997,0.9744,2418.4,2417.1,1.015]
[1750442414198,0.0603,2418.3,2417.1,1.015]
[1750442414398,9.031,2418.2,2418.1,4.13547826]
[1750442414728,0.9744,2418.4,2418.3,4.13513625]
[1750442415235,1.0802,2418.8,2418.7,4.13445239]
[1750442415445,1.0802,2418.8,2418.0,4.13562726]
[1750442415446,12.9202,2418.8,2418.0,4.13562726]
[1750442415651,14.21222,2418.8,2418.4,4.13494667]
[1750442415947,14.27252,2418.8,2418.4,4.13496526]
[1750442416233,14.27252,2418.8,2417.6,4.19540974]
[1750442416234,10.0,2418.7,2417.6,4.19540974]
[1750442416397,10.0,2418.5,2417.8,4.13590498]
[1750442416594,10.0,2418.5,2417.2,1.1302]
[1750442416595,1.1405,2418.4,2417.2,1.1302]
[1750442416801,3.43755,2418.4,2417.2,0.58583875]
[1750442416995,4.13517697,2418.3,2417.2,0.0591]
[1750442417212,11.829,2418.2,2417.9,4.13572827]
[1750442417418,11.833,2418.2,2418.0,4.13552124]
[1750442417744,11.833,2418.2,2417.2,0.0591]
[1750442417901,11.833,2418.2,2417.1,0.0413627]
[1750442417902,1.0645,2417.9,2417.1,0.0413627]
[1750442418097,11.834,2417.8,2417.5,4.13645021]
[1750442418533,12.92142411,2417.8,2416.9,4.13753154]
[1750442418737,12.98172411,2417.8,2417.4,4.13666868]
[1750442419057,1.0645,2417.9,2417.8,4.13599139]
[1750442419058,2.81,2417.9,2417.8,4.13599139]
[1750442419564,9.928,2418.0,2417.9,4.13582033]
[1750442420051,21.739,2418.0,2417.9,4.13582033]
[1750442420351,21.739,2418.0,2417.8,4.13593008]
[1750442420515,21.739,2418.0,2417.8,4.13590427]
[1750442420714,21.739,2418.0,2417.9,4.13582033]
[1750442421537,21.739,2418.0,2417.2,0.0591]
[1750442421840,21.739,2418.0,2416.1,4.55862987]
[1750442421841,25.93503598,2418.0,2417.5,4.13641645]
[1750442422038,25.93503598,2418.0,2417.0,4.13726156]
[1750442422039,9.928,2418.0,2417.9,4.13582033]
[1750442422243,0.23,2418.2,2418.1,4.13547826]
[1750442423033,12.022,2418.2,2418.1,4.13547826]
[1750442423371,12.022,2418.2,2417.6,4.1363182]
[1750442423372,12.022,2418.2,2417.3,0.0591]
[1750442423572,0.0603,2418.0,2416.7,5.19536376]
[1750442423798,1.0706,2417.7,2416.5,0.0591]
[1750442424067,1.0706,2417.7,2417.2,4.13692426]
[1750442424068,9.928,2417.6,2417.2,4.13692426]
[1750442424272,11.791,2417.5,2417.0,4.13724627]
[1750442424437,4.13705774,2417.2,2416.3,1.0575]
[1750442424637,8.982,2417.1,2416.4,0.04137944]
[1750442424976,8.982,2417.1,2417.0,4.13736036]
[1750442425175,1.0557,2417.2,2417.1,4.13718919]
[1750442425479,10.9513,2417.6,2417.5,4.13650465]
[1750442425776,22.7423,2417.6,2417.5,4.13650465]
[1750442425945,10.1113596,2417.6,2417.5,4.13650465]
[1750442426147,1.232,2418.0,2417.9,4.13582033]
[1750442426350,13.023,2418.0,2417.9,4.13582033]
[1750442426555,12.021,2418.0,2417.9,4.13582033]
[1750442427561,12.29304344,2418.0,2417.9,4.13582033]
[1750442428268,3.31104344,2418.0,2417.9,4.19572033]
[1750442428571,3.31104344,2418.0,2417.9,5.02888828]
[1750442428994,3.31104344,2418.0,2417.9,4.13582033]
[1750442429195,3.039,2418.0,2417.9,4.13582033]
[1750442429406,3.039,2418.0,2417.9,4.19572033]
[1750442430290,3.039,2418.0,2417.9,4.13582033]
[1750442430456,4.1023,2418.0,2416.5,4.19809956]
[1750442430660,0.0608,2417.8,2416.6,4.13804518]
[1750442430858,4.13627447,2417.7,2417.2,4.13694329]
[1750442431160,4.13627447,2417.7,2416.7,4.13787396]
[1750442431161,0.0608,2417.5,2416.7,4.13787396]
[1750442431389,8.982,2417.6,2417.2,4.1369508]
[1750442431590,8.982,2417.6,2417.1,4.13708625]
[1750442431591,13.11834773,2417.6,2417.1,4.13708625]
[1750442431892,8.982,2417.6,2416.7,0.46115976]
[1750442432203,1.063,2417.4,2416.7,4.13784935]
[1750442432358,1.063,2417.4,2416.6,4.13804518]
[1750442432557,1.063,2417.4,2417.3,4.13684689]
[1750442432754,12.855,2417.4,2417.3,4.13684689]
[1750442433192,0.23,2417.6,2417.5,4.13650465]
[1750442433396,3.04,2417.8,2417.7,4.13616246]
[1750442433592,0.23,2417.8,2417.7,4.13616246]
[1750442433813,0.23,2417.8,2417.7,4.19606246]
[1750442434466,0.23,2417.8,2417.7,4.13616246]
[1750442434874,0.23,2417.8,2417.7,4.23741659]
[1750442435202,0.23,2418.2,2418.1,4.13547826]
[1750442435398,12.021,2418.4,2418.3,4.13513625]
[1750442435777,12.021,2418.4,2417.7,1.04641039]
[1750442435967,12.021,2418.4,2418.1,4.13532639]
[1750442436390,0.23,2418.4,2417.6,4.13633355]
[1750442436574,11.79,2418.3,2418.2,4.1352121]
[1750442436783,0.23,2418.4,2417.8,4.13598087]
[1750442436977,11.79,2418.3,2417.4,0.0599]
[1750442437182,11.79,2418.3,2418.0,4.13564073]
[1750442437776,11.79,2418.3,2418.1,4.13546375]
[1750442438113,11.79,2418.2,2418.1,4.13541972]
[1750442438310,0.23,2418.4,2418.2,4.13515147]
[1750442438605,11.789,2418.3,2418.2,4.13515147]
[1750442439908,11.789,2418.3,2418.1,4.13540904]
[1750442440100,11.789,2418.3,2418.2,4.13530725]
[1750442440303,11.789,2418.3,2417.7,4.13611023]
[1750442440505,11.789,2418.3,2418.1,4.13537609]
[1750442440875,11.789,2418.3,2418.2,4.13530725]
[1750442441908,0.23,2418.4,2418.3,4.13513625]
[1750442442106,12.016,2418.4,2418.3,4.13513625]
[1750442442405,0.23,2418.4,2418.3,4.13513625]
[1750442443007,10.158,2418.5,2418.4,4.13496526]
[1750442443206,19.134,2418.5,2417.7,0.88714612]
[1750442443513,0.36590408,2418.4,2418.1,4.13535239]
[1750442443731,19.134,2418.5,2418.0,4.13564929]
[1750442443930,4.13574637,2418.0,2417.0,4.13736036]
[1750442444130,0.36592629,2417.9,2417.1,4.13718919]
[1750442444425,11.784,2417.8,2417.2,4.17831427]
[1750442444611,11.8448,2417.8,2417.6,4.13629204]
[1750442444958,11.784,2417.8,2417.6,4.13624699]
[1750442445107,11.784,2417.8,2417.5,4.13644]
[1750442445303,5.23437751,2418.2,2416.9,4.19727697]
[1750442445304,1.099,2418.2,2417.7,4.13616246]
[1750442445517,11.783,2418.1,2418.0,4.13564929]
[1750442445831,1.0382,2418.2,2417.7,4.13610198]
[1750442445832,2.809,2418.2,2418.1,4.13547826]
[1750442446125,10.158,2418.5,2418.3,4.1350583]
[1750442446290,10.158,2418.5,2418.4,4.13496526]
[1750442446490,21.94,2418.5,2418.4,4.13496526]
[1750442447090,28.42899985,2418.5,2418.0,4.13562412]
[1750442447339,0.36567903,2418.4,2417.3,4.19668973]
[1750442447538,10.158,2418.5,2418.4,4.13496526]
[1750442447695,10.158,2418.5,2417.4,0.04135671]
[1750442447696,10.52370149,2418.5,2418.2,4.13525684]
[1750442447896,21.939,2418.5,2418.2,4.13525684]
[1750442448098,21.9998,2418.5,2418.2,4.13525684]
[1750442448310,21.939,2418.5,2418.3,4.13504282]
[1750442448519,21.939,2418.5,2418.2,4.13523926]
[1750442448758,21.939,2418.5,2418.4,4.13496526]
[1750442449145,21.939,2418.5,2418.3,4.13506152]
[1750442449350,12.967,2418.5,2418.4,4.13496526]
[1750442449575,21.938,2418.5,2418.4,4.13496526]
[1750442449744,21.938,2418.5,2417.9,4.1356523]
[1750442449943,21.938,2418.5,2418.4,4.13496526]
[1750442450438,19.128,2418.5,2418.4,4.13496526]
[1750442450641,19.128,2418.5,2417.9,5.20470261]
[1750442450838,19.128,2418.5,2418.4,4.13496526]
[1750442451242,19.1888,2418.5,2418.2,4.13524919]
[1750442451476,19.1888,2418.5,2418.3,4.13510989]
[1750442451832,19.1888,2418.5,2418.2,4.13521309]
[1750442452032,19.1888,2418.5,2418.1,4.13538262]
[1750442452233,0.0608,2418.4,2418.1,4.13538977]
[1750442452427,8.968,2418.3,2418.0,4.1355558]
[1750442452667,0.0608,2418.0,2416.9,1.0402]
[1750442452878,4.13662721,2417.5,2417.0,4.13733982]
[1750442453044,18.895,2417.4,2417.1,4.13711432]
[1750442453372,0.0608,2417.1,2416.8,4.13762504]
[1750442453530,11.768,2417.0,2416.2,4.13873023]
[1750442453726,1.0213,2417.2,2416.9,4.13743948]
[1750442453933,11.768,2417.1,2416.3,10.52417302]
[1750442454183,1.0213,2417.2,2416.3,10.52417302]
[1750442454184,1.0213,2417.2,2417.1,4.13718919]
[1750442454336,11.768,2417.2,2417.1,4.13718919]
[1750442454679,12.73,2417.4,2417.3,4.13684689]
[1750442454859,12.73,2417.4,2416.5,0.55]
[1750442454860,21.695,2417.4,2416.5,4.19435445]
[1750442455182,21.695,2417.4,2417.0,4.1372452]
[1750442455347,0.0586,2417.3,2417.0,4.1372452]
[1750442455554,8.964,2417.2,2417.0,4.1372452]
[1750442456683,8.964,2417.2,2417.1,4.13718919]
[1750442456887,8.964,2417.2,2416.5,0.47185275]
[1750442457033,11.0703,2417.1,2416.5,4.13813506]
[1750442457233,8.964,2417.0,2416.6,4.13804391]
[1750442457434,9.0226,2417.0,2416.6,4.13804391]
[1750442457635,1.0117,2417.1,2416.9,4.13745207]
[1750442457933,11.765,2417.0,2416.9,4.13745207]
[1750442458680,11.765,2417.0,2416.8,4.13761202]
[1750442458881,11.764,2416.9,2416.8,0.82755842]
[1750442459177,11.764,2416.9,2416.8,4.13770274]
[1750442459959,11.764,2416.9,2416.7,4.13779568]
[1750442460142,11.764,2416.9,2416.2,10.0]
[1750442460372,11.763,2416.8,2416.3,0.09767944]
[1750442460552,11.763,2416.7,2416.6,4.13804518]
[1750442461185,8.96,2416.7,2416.6,4.13804518]
[1750442461397,9.928,2417.4,2417.3,4.13684689]
[1750442461706,21.69,2417.4,2416.8,4.13761097]
[1750442461847,0.0586,2417.2,2416.8,4.13768174]
[1750442462190,19.0176,2417.1,2416.7,4.13777722]
[1750442462395,23.15481959,2417.1,2416.7,4.13777722]
[1750442462551,19.0176,2417.1,2416.2,0.0563]
[1750442462747,0.0586,2417.0,2416.2,0.0563]
[1750442462947,13.09557864,2416.9,2416.4,4.13827169]
[1750442463294,9.188,2416.9,2416.5,4.13807845]
[1750442463497,0.0586,2416.8,2416.4,4.1383325]
[1750442463646,10.9975,2416.6,2415.8,1.0964]
[1750442463844,9.188,2416.5,2415.5,0.46392015]
[1750442464045,0.23,2416.5,2416.4,4.13838768]
[1750442464294,0.23,2416.6,2416.5,4.19451642]
[1750442464577,0.23,2416.6,2416.5,4.13821642]
[1750442465006,0.23,2416.6,2416.2,4.13872713]
[1750442465007,9.186,2416.8,2415.7,11.1442]
[1750442465197,11.0458,2416.6,2415.3,1.1442]
[1750442465376,0.9872,2415.9,2415.0,0.0563]
[1750442465702,0.0586,2415.8,2415.0,0.0563]
[1750442465995,1.2172,2415.9,2415.8,4.13941551]
[1750442465996,0.23,2415.9,2415.8,4.13941551]
[1750442466148,0.23,2415.9,2415.8,5.30691007]
[1750442466347,0.23,2415.9,2415.8,6.66553245]
[1750442466985,0.23,2416.2,2416.1,4.19520153]
[1750442467184,0.23,2416.8,2416.7,4.13787396]
[1750442467577,0.23,2416.9,2416.8,4.13770274]
[1750442467899,9.183,2416.9,2416.8,4.13770274]
[1750442468855,11.986,2416.9,2416.8,4.13770274]
[1750442469572,11.984,2416.9,2416.8,4.13770274]
[1750442469861,0.0586,2416.8,2416.5,4.13812804]
[1750442470081,0.0586,2416.8,2416.6,4.13802386]
[1750442470291,0.0586,2416.8,2416.5,4.1381967]
[1750442470795,0.0586,2416.8,2415.8,11.41492238]
[1750442470796,1.0696,2416.6,2416.2,4.1387184]
[1750442471002,0.0586,2416.3,2415.5,4.13992962]
[1750442471164,3.033,2416.5,2416.4,4.13838768]
[1750442471365,11.982,2416.5,2416.3,4.13850695]
[1750442471564,11.982,2416.5,2416.4,4.13838768]
[1750442471775,0.23,2416.5,2416.4,4.13838768]
[1750442472004,0.23,2416.6,2415.8,0.981]
[1750442472174,10.23,2416.5,2415.5,0.981]
[1750442472379,10.23,2416.5,2415.7,4.13956284]
[1750442472380,4.13874494,2416.2,2415.7,4.13956284]
[1750442472594,11.751,2416.1,2415.7,4.13956284]
[1750442472920,11.981,2416.1,2415.7,4.13956284]
[1750442473061,11.981,2416.1,2415.4,0.222726]
[1750442473062,0.23,2416.1,2416.0,4.13907284]
[1750442473265,9.177,2416.1,2416.0,4.13907284]
[1750442473677,9.177,2416.1,2415.9,4.13918048]
[1750442473995,10.375,2416.1,2415.5,4.13992962]
[1750442474207,10.375,2416.1,2415.6,4.13962187]
[1750442474372,0.23,2416.1,2416.0,4.13907284]
[1750442474576,11.978,2416.1,2416.0,4.13907284]
[1750442475474,0.23,2416.1,2416.0,4.13907284]
[1750442475684,0.9941,2416.4,2416.3,4.13855895]
[1750442475685,0.23,2416.4,2416.3,4.13855895]
[1750442475868,8.944,2416.5,2416.4,4.13834659]
[1750442476091,8.944,2416.5,2416.4,4.13838768]
[1750442476272,8.944,2416.5,2416.0,4.13907284]
[1750442476467,8.944,2416.5,2416.4,4.13838768]
[1750442476672,1.2412,2416.7,2416.6,4.13804518]
[1750442476673,3.033,2416.7,2416.6,4.13804518]
[1750442476905,11.976,2416.7,2416.6,4.13804518]
[1750442477206,0.23,2416.7,2416.6,4.19434518]
[1750442477574,0.23,2416.7,2416.1,4.55280537]
[1750442477575,0.23,2416.7,2416.4,4.13835299]
[1750442477790,8.942,2416.6,2416.5,4.13810104]
[1750442478000,9.0006,2416.6,2416.3,4.13855835]
[1750442478207,8.942,2416.6,2415.9,4.13924417]
[1750442478391,9.0006,2416.6,2416.2,4.13859531]
[1750442478589,10.2788494,2416.6,2416.2,4.13859531]
[1750442478894,3.5243,2416.4,2415.4,0.222726]
[1750442479097,11.973,2416.3,2415.4,0.222726]
[1750442479410,0.23,2416.3,2416.1,4.13887363]
[1750442479702,11.743,2416.2,2416.1,4.13887363]
[1750442480697,11.743,2416.2,2415.9,4.13917144]
[1750442480875,11.743,2416.2,2416.1,4.13890153]
[1750442481076,11.73348596,2416.2,2416.1,4.13890153]
[1750442481494,0.23,2416.3,2416.2,4.13873023]
[1750442481722,2.804,2416.3,2416.2,4.13873023]
[1750442481874,0.23,2416.4,2416.3,4.19485895]
[1750442482300,0.23,2416.8,2416.7,4.13787396]
[1750442482497,12.736,2417.0,2416.6,4.13800984]
[1750442482498,12.966,2417.0,2416.9,4.13753154]
[1750442482728,12.966,2417.0,2415.9,0.0563]
[1750442482729,21.902,2417.0,2415.9,0.0563]
[1750442482930,2.487,2416.8,2415.6,5.17643894]
[1750442483080,0.0586,2416.6,2415.6,11.0367]
[1750442483404,0.9996,2416.4,2416.1,4.13889908]
[1750442483573,9.165,2416.3,2416.1,4.13889908]
[1750442484023,0.23,2416.3,2416.2,4.13873023]
[1750442484225,9.165,2416.3,2416.2,4.13873023]
[1750442484419,9.165,2416.3,2416.2,4.96649316]
[1750442484583,9.165,2416.3,2416.2,4.13873023]
[1750442484783,0.23,2416.3,2416.2,4.19563023]
[1750442485187,0.23,2416.3,2416.2,4.13873023]
[1750442485424,9.163,2416.3,2416.2,4.13873023]
[1750442485719,0.23,2416.3,2416.2,4.19563023]
[1750442485933,0.23,2416.3,2416.2,6.16165852]
[1750442486091,0.23,2416.3,2416.2,6.12028023]
[1750442487172,9.16,2416.3,2416.2,4.13873023]
[1750442487422,0.23,2416.3,2416.2,4.19563023]
[1750442487730,0.23,2416.3,2416.2,14.78701247]
[1750442487913,0.23,2416.3,2416.2,14.74563023]
[1750442488614,11.943,2416.9,2416.8,4.13770274]
[1750442489616,0.23,2416.9,2416.8,4.13770274]
[1750442490479,10.162,2417.0,2416.8,5.12652712]
[1750442490675,0.23,2417.0,2416.9,14.78580604]
[1750442490881,0.1883,2417.0,2416.9,15.78813154]
[1750442491687,0.1707,2418.6,2418.3,4.13502916]
[1750442491886,0.1707,2418.6,2418.5,4.13479429]
[1750442492086,0.11,2418.6,2418.5,4.13479429]
[1750442492590,0.11,2419.2,2418.5,4.74169429]
[1750442492795,2.487,2420.2,2419.0,4.13393964]
[1750442492796,1.0628,2419.8,2419.0,4.13393964]
[1750442493130,1.0628,2419.8,2418.9,4.13404816]
[1750442493131,1.1235,2419.8,2418.9,4.13404816]
[1750442493413,4.19356442,2419.7,2419.1,4.13375811]
[1750442493634,0.0607,2419.7,2418.5,1.091]
[1750442493797,1.1235,2419.4,2418.9,4.13394875]
[1750442493975,11.7627,2419.3,2418.8,4.13425103]
[1750442494179,0.0607,2419.1,2418.8,4.13425103]
[1750442494580,0.0607,2419.1,2418.1,1.091]
[1750442494776,1.0413,2418.4,2417.6,4.13623265]
[1750442495010,11.7,2418.3,2417.6,4.13623265]
[1750442495212,0.0607,2418.2,2417.5,0.9933]
[1750442495397,1.0413,2418.4,2417.6,0.04135582]
[1750442495589,8.915,2418.2,2418.1,4.13547826]
[1750442495904,1.0413,2418.4,2418.3,4.13513625]
[1750442496274,9.9937,2418.7,2418.5,4.13473367]
[1750442496479,9.933,2418.7,2418.4,4.1349612]
[1750442496677,9.933,2418.7,2418.5,4.13470007]
[1750442496892,9.933,2418.7,2418.6,4.13462333]
[1750442497687,9.933,2418.7,2418.5,4.13471305]
[1750442497890,9.933,2418.7,2418.6,4.13462333]
[1750442498322,9.93,2419.6,2418.6,0.86828508]
[1750442498526,1.0413,2419.9,2419.8,4.13257293]
[1750442498691,1.0413,2419.9,2419.1,10.0]
[1750442498692,9.9503,2419.9,2419.1,10.0]
[1750442498887,1.0413,2419.9,2419.8,4.13257293]
[1750442499089,1.0413,2421.4,2419.8,15.64069867]
[1750442499289,8.9677,2421.3,2420.1,10.0]
[1750442499520,0.0607,2421.3,2420.7,4.13090115]
[1750442499716,7.95416368,2421.4,2420.2,0.04130942]
[1750442499717,8.907,2421.2,2420.9,4.13056444]
[1750442500027,8.907,2421.2,2421.0,4.13043633]
[1750442500228,8.907,2421.2,2421.1,4.13035397]
[1750442500433,10.0607,2421.1,2419.8,1.81982897]
[1750442500600,1.035,2421.0,2420.2,4.1317366]
[1750442500792,15.16563992,2421.0,2420.4,4.13153868]
[1750442500990,11.035,2421.0,2419.9,4.13228204]
[1750442501233,14.13096747,2420.8,2420.2,4.13179734]
[1750442501400,15.81707113,2420.7,2420.0,4.13221648]
[1750442501600,2.58170711,2420.6,2419.8,0.9933]
[1750442501813,4.1314244,2420.5,2419.5,1.0028]
[1750442502014,1.0275,2420.3,2419.5,1.0028]
[1750442502213,8.9607,2420.2,2419.8,4.13247796]
[1750442502603,8.9607,2420.2,2419.7,4.13266089]
[1750442502809,14.91774895,2420.2,2419.6,4.13279298]
[1750442503018,0.0607,2420.1,2419.3,4.13339232]
[1750442503228,0.0607,2420.1,2419.7,4.13257491]
[1750442503434,2.782,2420.0,2419.8,4.13255217]
[1750442503611,2.782,2420.0,2419.9,4.13240216]
[1750442503937,1.0275,2420.3,2419.4,0.55]
[1750442504139,8.897,2420.0,2419.9,4.13223481]
[1750442504830,8.897,2420.0,2419.3,0.0569]
[1750442505139,10.0649,2420.0,2419.7,4.13273101]
[1750442505342,10.0649,2420.0,2419.6,4.13283371]
[1750442505505,10.0649,2420.0,2419.4,4.13318804]
[1750442505506,10.1256,2420.0,2419.4,4.13318804]
[1750442505697,4.19316816,2419.9,2419.4,4.13318804]
[1750442505897,0.0607,2419.9,2419.5,4.13305936]
[1750442506321,10.0649,2420.0,2419.2,4.13358007]
[1750442506646,8.892,2420.2,2420.1,4.13195396]
[1750442506995,1.0275,2420.3,2420.0,4.13214724]
[1750442507310,1.0275,2420.3,2420.0,4.13209539]
[1750442507507,1.0275,2420.3,2420.1,4.1320336]
[1750442507865,1.0275,2420.3,2420.0,4.13213991]
[1750442508204,8.889,2420.5,2420.0,4.173421]
[1750442508402,8.889,2420.5,2420.4,4.1315485]
[1750442508959,8.889,2420.5,2419.8,1.0373]
[1750442509124,0.0607,2420.1,2419.0,5.17117166]
[1750442509345,0.0607,2420.1,2418.9,0.0569]
[1750442509346,0.0607,2419.8,2418.6,4.13461451]
[1750442509506,2.781,2419.7,2419.3,4.13341077]
[1750442509842,4.13338961,2419.4,2418.5,4.19162546]
[1750442510000,4.13338961,2419.4,2418.7,4.13433636]
[1750442510001,0.0607,2419.1,2418.7,4.13433636]
[1750442510201,11.666,2419.0,2418.8,4.13426983]
[1750442510402,11.666,2419.0,2418.8,4.13423261]
[1750442510826,11.666,2419.0,2418.8,4.13420373]
[1750442511026,11.666,2419.0,2418.9,4.13411054]